bitfinex-derivatives/quotes_BTCF0:USTF0_20251228
["timestamp","ask_amount","ask_price","bid_price","bid_amount"]
[1766889853446,0.02484304,87883.0,87875.0,0.01155822]
[1766889853646,0.00017062,87893.0,87875.0,0.01155822]
[1766889853948,0.0248431,87892.0,87875.0,0.01155822]
[1766889854245,0.0248431,87891.0,87875.0,0.01155822]
[1766889854445,0.0248431,87890.0,87875.0,0.01155822]
[1766889854639,0.0248431,87889.0,87875.0,0.01155822]
[1766889854841,0.0248431,87888.0,87875.0,0.01155822]
[1766889855141,0.0248431,87887.0,87875.0,0.01155822]
[1766889855340,0.0248431,87886.0,87875.0,0.01155822]
[1766889855546,0.0248431,87885.0,87875.0,0.01155822]
[1766889855742,0.0248431,87884.0,87875.0,0.01155822]
[1766889855943,0.0248431,87883.0,87875.0,0.01155822]
[1766889856249,0.02484317,87882.0,87875.0,0.01155822]
[1766889856444,0.02484317,87881.0,87875.0,0.01155822]
[1766889856638,0.00017062,87893.0,87875.0,0.01155822]
[1766889856839,0.02484323,87892.0,87875.0,0.01155822]
[1766889857039,0.02484323,87891.0,87875.0,0.01155822]
[1766889857242,0.02484323,87890.0,87875.0,0.01155822]
[1766889857441,0.02484323,87889.0,87875.0,0.01155822]
[1766889857740,0.02484323,87888.0,87875.0,0.01155822]
[1766889857938,0.02484323,87887.0,87875.0,0.01155822]
[1766889858140,0.02484323,87886.0,87875.0,0.01155822]
[1766889858342,0.02484323,87885.0,87875.0,0.01155822]
[1766889858640,0.02484323,87884.0,87875.0,0.01155822]
[1766889858843,0.02484323,87883.0,87875.0,0.01155822]
[1766889859039,0.02484323,87882.0,87875.0,0.01155822]
[1766889859238,0.02484323,87881.0,87875.0,0.01155822]
[1766889859448,0.00017062,87893.0,87875.0,0.01155822]
[1766889859648,0.02484338,87892.0,87875.0,0.01155822]
[1766889859850,0.02484338,87891.0,87875.0,0.01155822]
[1766889860049,0.02484338,87890.0,87875.0,0.01155822]
[1766889860251,0.02484338,87889.0,87875.0,0.01155822]
[1766889860552,0.02484338,87888.0,87875.0,0.01155822]
[1766889860754,0.02484338,87887.0,87875.0,0.01155822]
[1766889861048,0.02484338,87886.0,87875.0,0.01155822]
[1766889861245,0.02484338,87885.0,87875.0,0.01155822]
[1766889861447,0.02484338,87884.0,87875.0,0.01155822]
[1766889861649,0.02484338,87883.0,87875.0,0.01155822]
[1766889861847,0.02484338,87882.0,87875.0,0.01155822]
[1766889862047,0.02484338,87881.0,87875.0,0.01155822]
[1766889862247,0.00017062,87893.0,87875.0,0.01155822]
[1766889862454,0.02484339,87892.0,87875.0,0.01155822]
[1766889862645,0.02484339,87891.0,87875.0,0.01155822]
[1766889862846,0.02484339,87890.0,87875.0,0.01155822]
[1766889863046,0.02484339,87889.0,87875.0,0.01155822]
[1766889863247,0.02484339,87888.0,87875.0,0.01155822]
[1766889863440,0.02484339,87887.0,87875.0,0.01155822]
[1766889863646,0.02484339,87886.0,87875.0,0.01155822]
[1766889863848,0.02484339,87885.0,87875.0,0.01155822]
[1766889864049,0.02484339,87884.0,87875.0,0.01155822]
[1766889864351,0.02484339,87883.0,87875.0,0.01155822]
[1766889864548,0.02484339,87882.0,87875.0,0.01155822]
[1766889864751,0.02484339,87881.0,87875.0,0.01155822]
[1766889864956,0.00017062,87893.0,87875.0,0.01155822]
[1766889865152,0.02484341,87892.0,87875.0,0.01155822]
[1766889865349,0.02484341,87891.0,87875.0,0.01155822]
[1766889865549,0.02484341,87890.0,87875.0,0.01155822]
[1766889865850,0.02484341,87889.0,87875.0,0.01155822]
[1766889866159,0.02484341,87888.0,87875.0,0.01155822]
[1766889866454,0.02484341,87887.0,87875.0,0.01155822]
[1766889866653,0.02484341,87886.0,87875.0,0.01155822]
[1766889866854,0.02484341,87885.0,87875.0,0.01155822]
[1766889867155,0.02484341,87884.0,87875.0,0.01155822]
[1766889867350,0.02484341,87883.0,87875.0,0.01155822]
[1766889867552,0.114112,87890.0,87875.0,0.01155822]
[1766889867751,0.02484654,87889.0,87875.0,0.01155822]
[1766889867951,0.02484654,87888.0,87875.0,0.01155822]
[1766889868253,0.02484654,87887.0,87875.0,0.01155822]
[1766889868453,0.02484654,87886.0,87875.0,0.01155822]
[1766889868657,0.02484654,87885.0,87875.0,0.01155822]
[1766889868853,0.02484654,87884.0,87875.0,0.01155822]
[1766889869054,0.02484654,87883.0,87875.0,0.01155822]
[1766889869352,0.114112,87890.0,87875.0,0.01155822]
[1766889869551,0.02484655,87889.0,87875.0,0.01155822]
[1766889869850,0.02484655,87888.0,87875.0,0.01155822]
[1766889870053,0.02484655,87887.0,87875.0,0.01155822]
[1766889870354,0.02484655,87886.0,87875.0,0.01155822]
[1766889870551,0.02484655,87885.0,87875.0,0.01155822]
[1766889870753,0.02484655,87884.0,87875.0,0.01155822]
[1766889871049,0.114112,87890.0,87875.0,0.01155822]
[1766889871050,0.02484655,87883.0,87875.0,0.01155822]
[1766889871351,0.114112,87890.0,87875.0,0.01155822]
[1766889871650,0.02484656,87889.0,87875.0,0.01155822]
[1766889871850,0.02484656,87888.0,87875.0,0.01155822]
[1766889872041,0.02484656,87887.0,87875.0,0.01155822]
[1766889872245,0.02484656,87886.0,87875.0,0.01155822]
[1766889872453,0.02484656,87885.0,87875.0,0.01155822]
[1766889872653,0.02484656,87884.0,87875.0,0.01155822]
[1766889872852,0.02484656,87883.0,87875.0,0.01155822]
[1766889873053,0.114112,87890.0,87875.0,0.01155822]
[1766889873253,0.02484657,87889.0,87875.0,0.01155822]
[1766889873456,0.02484657,87888.0,87875.0,0.01155822]
[1766889873756,0.114112,87890.0,87875.0,0.01155822]
[1766889873757,0.02484657,87887.0,87875.0,0.01155822]
[1766889873960,0.02484657,87886.0,87875.0,0.01155822]
[1766889874256,0.02484657,87885.0,87875.0,0.01155822]
[1766889874447,0.114112,87890.0,87875.0,0.01155822]
[1766889874647,0.02484658,87889.0,87875.0,0.01155822]
[1766889874848,0.02484658,87888.0,87875.0,0.01155822]
[1766889875048,0.02484658,87887.0,87875.0,0.01155822]
[1766889875253,0.02484658,87886.0,87875.0,0.01155822]
[1766889875452,0.02484658,87885.0,87875.0,0.01155822]
[1766889875657,0.02484658,87884.0,87875.0,0.01155822]
[1766889875959,0.02484658,87883.0,87875.0,0.01155822]
[1766889876158,0.114112,87890.0,87875.0,0.01155822]
[1766889876358,0.0248466,87889.0,87875.0,0.01155822]
[1766889876558,0.0248466,87888.0,87875.0,0.01155822]
[1766889876758,0.0248466,87887.0,87875.0,0.01155822]
[1766889877058,0.0248466,87886.0,87875.0,0.01155822]
[1766889877258,0.0248466,87885.0,87875.0,0.01155822]
[1766889877460,0.0248466,87884.0,87875.0,0.01155822]
[1766889877659,0.0248466,87883.0,87875.0,0.01155822]
[1766889877862,0.171072,87890.0,87875.0,0.01155822]
[1766889878061,0.02484661,87889.0,87875.0,0.01155822]
[1766889878261,0.02484661,87888.0,87875.0,0.01155822]
[1766889878561,0.02484661,87887.0,87875.0,0.01155822]
[1766889878762,0.02484661,87886.0,87875.0,0.01155822]
[1766889879068,0.02484661,87885.0,87875.0,0.01155822]
[1766889879362,0.02484661,87884.0,87875.0,0.01155822]
[1766889879562,0.02484661,87883.0,87875.0,0.01155822]
[1766889879764,0.171072,87890.0,87875.0,0.01155822]
[1766889879963,0.02484667,87889.0,87875.0,0.01155822]
[1766889880164,0.02484667,87888.0,87875.0,0.01155822]
[1766889880467,0.02484667,87887.0,87875.0,0.01155822]
[1766889880665,0.02484667,87886.0,87875.0,0.01155822]
[1766889880965,0.02484667,87885.0,87875.0,0.01155822]
[1766889881166,0.02484667,87884.0,87875.0,0.01155822]
[1766889881465,0.02484667,87883.0,87875.0,0.01155822]
[1766889881666,0.171072,87890.0,87875.0,0.01155822]
[1766889881866,0.0248467,87889.0,87875.0,0.01155822]
[1766889882165,0.0248467,87888.0,87875.0,0.01155822]
[1766889882366,0.0248467,87887.0,87875.0,0.01155822]
[1766889882554,0.0248467,87886.0,87875.0,0.01155822]
[1766889882753,0.0248467,87885.0,87875.0,0.01155822]
[1766889882953,0.0248467,87884.0,87875.0,0.01155822]
[1766889883155,0.0248467,87883.0,87875.0,0.01155822]
[1766889883354,0.05696,87890.0,87875.0,0.01155822]
[1766889883553,0.02484669,87889.0,87875.0,0.01155822]
[1766889883857,0.02484669,87888.0,87875.0,0.01155822]
[1766889884057,0.02484669,87887.0,87875.0,0.01155822]
[1766889884257,0.02484669,87886.0,87875.0,0.01155822]
[1766889884465,0.02484669,87885.0,87875.0,0.01155822]
[1766889884665,0.02484669,87884.0,87875.0,0.01155822]
[1766889884959,0.02484669,87883.0,87875.0,0.01155822]
[1766889885157,0.05696,87890.0,87875.0,0.01155822]
[1766889885358,0.02484669,87889.0,87875.0,0.01155822]
[1766889885554,0.02484669,87888.0,87875.0,0.01155822]
[1766889885757,0.02484669,87887.0,87875.0,0.01155822]
[1766889885959,0.02484669,87886.0,87875.0,0.01155822]
[1766889886165,0.02484669,87885.0,87875.0,0.01155822]
[1766889886361,0.02484669,87884.0,87875.0,0.01155822]
[1766889886569,0.02484669,87883.0,87875.0,0.01155822]
[1766889886772,0.05696,87890.0,87875.0,0.01155822]
[1766889886969,0.02484669,87889.0,87875.0,0.01155822]
[1766889887169,0.02484669,87888.0,87875.0,0.01155822]
[1766889887369,0.02484669,87887.0,87875.0,0.01155822]
[1766889887569,0.02484669,87886.0,87875.0,0.01155822]
[1766889887770,0.05696,87890.0,87875.0,0.01155822]
[1766889887771,0.02484669,87885.0,87875.0,0.01155822]
[1766889887973,0.02484669,87884.0,87875.0,0.01155822]
[1766889888270,0.02484669,87883.0,87875.0,0.01155822]
[1766889888570,0.05696,87890.0,87875.0,0.01155822]
[1766889888772,0.02484669,87889.0,87875.0,0.01155822]
[1766889889070,0.02484669,87888.0,87875.0,0.01155822]
[1766889889271,0.02484669,87887.0,87875.0,0.01155822]
[1766889889464,0.02484669,87886.0,87875.0,0.01155822]
[1766889889664,0.02484669,87885.0,87875.0,0.01155822]
[1766889889958,0.02484669,87884.0,87875.0,0.01155822]
[1766889890158,0.02484669,87883.0,87875.0,0.01155822]
[1766889890362,0.05696,87890.0,87875.0,0.01155822]
[1766889890666,0.02484669,87889.0,87875.0,0.01155822]
[1766889890867,0.02484669,87888.0,87875.0,0.01155822]
[1766889891063,0.02484669,87887.0,87875.0,0.01155822]
[1766889891364,0.02484669,87886.0,87875.0,0.01155822]
[1766889891563,0.02484669,87885.0,87875.0,0.01155822]
[1766889891776,0.02484669,87884.0,87875.0,0.01155822]
[1766889891971,0.05696,87890.0,87875.0,0.01155822]
[1766889891972,0.02484669,87883.0,87875.0,0.01155822]
[1766889892172,0.05696,87890.0,87875.0,0.01155822]
[1766889892372,0.02484665,87889.0,87875.0,0.01155822]
[1766889892671,0.02484665,87888.0,87877.0,0.0113874]
[1766889892874,0.02484665,87887.0,87877.0,0.0113874]
[1766889893075,0.02484665,87886.0,87877.0,0.0113874]
[1766889893373,0.02484665,87885.0,87877.0,0.0113874]
[1766889893574,0.02484665,87884.0,87877.0,0.0113874]
[1766889893779,0.02484665,87883.0,87877.0,0.0113874]
[1766889894074,0.05696,87890.0,87877.0,0.0113874]
[1766889894277,0.02484664,87889.0,87877.0,0.0113874]
[1766889894478,0.02484664,87888.0,87877.0,0.0113874]
[1766889894669,0.02484664,87887.0,87877.0,0.0113874]
[1766889894870,0.02484664,87886.0,87877.0,0.0113874]
[1766889895168,0.02484664,87885.0,87877.0,0.0113874]
[1766889895369,0.02484664,87884.0,87877.0,0.0113874]
[1766889895565,0.02484664,87883.0,87877.0,0.0113874]
[1766889895765,0.05696,87890.0,87877.0,0.0113874]
[1766889895966,0.02484662,87889.0,87877.0,0.0113874]
[1766889896163,0.02484662,87888.0,87877.0,0.0113874]
[1766889896371,0.02484662,87887.0,87877.0,0.0113874]
[1766889896577,0.02484662,87886.0,87877.0,0.0113874]
[1766889896768,0.02484662,87885.0,87877.0,0.0113874]
[1766889896970,0.02484662,87884.0,87877.0,0.0113874]
[1766889897174,0.02484662,87883.0,87877.0,0.0113874]
[1766889897377,0.05696,87890.0,87877.0,0.0113874]
[1766889897674,0.02480226,87889.0,87877.0,0.0113874]
[1766889897873,0.05696,87890.0,87875.0,0.00017062]
[1766889897874,0.02480226,87888.0,87881.0,0.0113869]
[1766889898077,0.02480226,87887.0,87881.0,0.0113869]
[1766889898375,0.02480226,87886.0,87881.0,0.0113869]
[1766889898576,6e-08,87885.0,87881.0,0.0113869]
[1766889898877,0.05696,87890.0,87881.0,0.0113869]
[1766889900780,0.04557033,87890.0,87881.0,0.0113869]
[1766889901180,0.04557033,87890.0,87882.0,0.0113867]
[1766889901384,0.04557033,87890.0,87884.0,0.0113865]
[1766889901579,0.04557033,87890.0,87881.0,0.0113869]
[1766889905878,0.01308255,87891.0,87875.0,0.00017062]
[1766889905879,5e-08,87891.0,87885.0,0.0113864]
[1766889906080,0.05696,87900.0,87880.0,0.114112]
[1766889906272,0.0968,87905.0,87893.0,0.0113853]
[1766889906581,0.05696,87904.0,87893.0,0.0092553]
[1766889906882,0.05696,87904.0,87880.0,0.114112]
[1766889907084,0.00017062,87901.0,87883.0,0.00017062]
[1766889907274,0.00017062,87901.0,87893.0,0.0113853]
[1766889908181,0.00017062,87901.0,87883.0,0.00017062]
[1766889910184,0.00017062,87901.0,87890.0,0.0113857]
[1766889910779,0.02458569,87900.0,87890.0,0.0113857]
[1766889910979,0.02458569,87899.0,87890.0,0.0113857]
[1766889911282,0.02458569,87898.0,87890.0,0.0113857]
[1766889911487,0.02458569,87897.0,87890.0,0.0113857]
[1766889911679,0.02458569,87896.0,87890.0,0.0113857]
[1766889911979,9e-08,87895.0,87890.0,0.0113857]
[1766889912178,0.00017062,87901.0,87890.0,0.0113857]
[1766889913285,0.00017062,87901.0,87892.0,0.0113855]
[1766889923298,0.00017062,87901.0,87890.0,0.114112]
[1766889923995,0.02447094,87900.0,87885.0,0.05696]
[1766889924189,0.02447094,87899.0,87885.0,0.05696]
[1766889924391,0.02447094,87898.0,87885.0,0.05696]
[1766889924591,0.02447094,87897.0,87885.0,0.05696]
[1766889924792,0.02447094,87896.0,87885.0,0.05696]
[1766889925093,0.02447094,87895.0,87885.0,0.05696]
[1766889925392,0.00017062,87901.0,87885.0,0.05696]
[1766889925393,0.02447094,87894.0,87885.0,0.05696]
[1766889925595,0.02447094,87893.0,87885.0,0.05696]
[1766889925786,0.02447094,87892.0,87885.0,0.05696]
[1766889925986,0.00017062,87901.0,87885.0,0.05696]
[1766889926186,0.02447467,87900.0,87885.0,0.05696]
[1766889926398,0.02447467,87899.0,87885.0,0.05696]
[1766889926691,0.02447467,87898.0,87885.0,0.05696]
[1766889926890,0.02447467,87897.0,87885.0,0.05696]
[1766889927094,0.02447467,87896.0,87885.0,0.05696]
[1766889927392,0.00017062,87901.0,87885.0,0.05696]
[1766889927393,0.02447467,87895.0,87885.0,0.05696]
[1766889927592,0.00017062,87901.0,87885.0,0.05696]
[1766889927593,0.02447467,87894.0,87885.0,0.05696]
[1766889927795,0.02447467,87893.0,87885.0,0.05696]
[1766889927989,0.02447467,87892.0,87885.0,0.05696]
[1766889928190,0.02447467,87891.0,87885.0,0.05696]
[1766889928392,0.00017062,87901.0,87885.0,0.05696]
[1766889928583,0.0243359,87900.0,87885.0,0.05696]
[1766889928788,0.0243359,87899.0,87885.0,0.05696]
[1766889928997,0.0243359,87898.0,87885.0,0.05696]
[1766889929299,0.0243359,87897.0,87886.0,0.0113863]
[1766889929497,0.0243359,87896.0,87886.0,0.0113863]
[1766889929797,0.0243359,87895.0,87886.0,0.0113863]
[1766889929999,0.0243359,87894.0,87886.0,0.0113863]
[1766889930196,0.0243359,87893.0,87886.0,0.0113863]
[1766889930397,0.00017062,87901.0,87886.0,0.0113863]
[1766889930598,0.02433916,87900.0,87886.0,0.0113863]
[1766889930798,0.02433916,87899.0,87886.0,0.0113863]
[1766889930998,0.02433916,87898.0,87886.0,0.0113863]
[1766889931200,0.02433916,87897.0,87886.0,0.0113863]
[1766889931501,0.02433916,87896.0,87886.0,0.0113863]
[1766889931701,0.02433916,87895.0,87886.0,0.0113863]
[1766889931901,0.02433916,87894.0,87886.0,0.0113863]
[1766889932101,0.02433916,87893.0,87886.0,0.0113863]
[1766889932300,0.02433916,87892.0,87886.0,0.0113863]
[1766889932491,0.02433916,87891.0,87886.0,0.0113863]
[1766889932790,0.02433916,87890.0,87886.0,0.0113863]
[1766889932991,6e-08,87889.0,87886.0,0.0113863]
[1766889933291,0.00017062,87901.0,87886.0,0.0113863]
[1766889944495,0.00017062,87901.0,87888.0,0.011386]
[1766889944908,0.02424301,87900.0,87888.0,0.011386]
[1766889945105,0.02424301,87899.0,87888.0,0.011386]
[1766889945307,0.02424301,87898.0,87888.0,0.011386]
[1766889945510,0.02424301,87897.0,87888.0,0.011386]
[1766889945705,0.02424301,87896.0,87888.0,0.011386]
[1766889946006,0.02424301,87895.0,87888.0,0.011386]
[1766889946204,0.02424301,87894.0,87888.0,0.011386]
[1766889946505,0.02424301,87893.0,87888.0,0.011386]
[1766889946705,0.06151061,87900.0,87888.0,0.011386]
[1766889946706,0.02424301,87892.0,87888.0,0.011386]
[1766889946906,1e-08,87891.0,87888.0,0.011386]
[1766889947104,0.06151061,87900.0,87888.0,0.011386]
[1766889956214,0.00017062,87901.0,87888.0,0.011386]
[1766889958917,0.02403785,87900.0,87888.0,0.011386]
[1766889959220,0.02403785,87899.0,87888.0,0.011386]
[1766889959413,0.02403785,87898.0,87888.0,0.011386]
[1766889959615,0.02403785,87897.0,87888.0,0.011386]
[1766889959813,0.02403785,87896.0,87888.0,0.011386]
[1766889960018,0.02403785,87895.0,87888.0,0.011386]
[1766889960317,0.02403785,87894.0,87888.0,0.011386]
[1766889960523,0.02403785,87893.0,87888.0,0.011386]
[1766889960712,0.02403785,87892.0,87888.0,0.011386]
[1766889961010,5e-08,87891.0,87888.0,0.011386]
[1766889961210,0.00017062,87901.0,87888.0,0.011386]
[1766889967221,0.00017062,87901.0,87885.0,0.0683463]
[1766889972830,0.02411269,87900.0,87885.0,0.0683463]
[1766889973031,0.02411269,87899.0,87885.0,0.0683463]
[1766889973221,0.02411269,87898.0,87885.0,0.0683463]
[1766889973423,0.02411269,87897.0,87885.0,0.0683463]
[1766889973623,0.02411269,87896.0,87885.0,0.0683463]
[1766889973935,0.02411269,87895.0,87885.0,0.0683463]
[1766889974129,0.02411269,87894.0,87885.0,0.0683463]
[1766889974331,0.02411269,87893.0,87885.0,0.0683463]
[1766889974525,0.02411269,87892.0,87885.0,0.0683463]
[1766889974725,0.02411269,87891.0,87885.0,0.0683463]
[1766889974928,0.02411269,87890.0,87885.0,0.0683463]
[1766889975129,0.00017062,87901.0,87885.0,0.0683463]
[1766889975329,0.03549717,87900.0,87885.0,0.0683463]
[1766889975529,0.02411257,87899.0,87885.0,0.0683463]
[1766889977524,0.02411257,87898.0,87885.0,0.0683463]
[1766889977718,0.02411257,87897.0,87885.0,0.0683463]
[1766889978023,0.02411257,87896.0,87885.0,0.0683463]
[1766889978223,0.02411257,87895.0,87885.0,0.0683463]
[1766889978428,0.02411257,87894.0,87885.0,0.0683463]
[1766889978627,0.02411257,87893.0,87885.0,0.0683463]
[1766889978829,0.02411257,87892.0,87885.0,0.0683463]
[1766889979029,0.02411257,87891.0,87885.0,0.0683463]
[1766889979329,0.02411257,87890.0,87885.0,0.0683463]
[1766889979530,0.00017062,87901.0,87885.0,0.0683463]
[1766889979731,0.0241131,87900.0,87885.0,0.0683463]
[1766889979931,0.0241131,87899.0,87885.0,0.0683463]
[1766889980131,0.0241131,87898.0,87885.0,0.0683463]
[1766889980427,0.0241131,87897.0,87885.0,0.0683463]
[1766889980627,0.0241131,87896.0,87885.0,0.0683463]
[1766889980830,0.0241131,87895.0,87885.0,0.0683463]
[1766889981131,0.0241131,87894.0,87885.0,0.0683463]
[1766889981430,0.0241131,87893.0,87885.0,0.0683463]
[1766889981626,0.0241131,87892.0,87885.0,0.0683463]
[1766889981832,0.0241131,87891.0,87885.0,0.0683463]
[1766889982031,0.0241131,87890.0,87885.0,0.0683463]
[1766889982231,0.00017062,87901.0,87885.0,0.0683463]
[1766889982434,0.02411315,87900.0,87885.0,0.0683463]
[1766889982622,0.02411315,87899.0,87885.0,0.0683463]
[1766889982831,0.02411315,87898.0,87885.0,0.0683463]
[1766889983029,0.02411315,87897.0,87885.0,0.0683463]
[1766889983233,0.02411315,87896.0,87885.0,0.0683463]
[1766889983538,0.02411315,87895.0,87885.0,0.0683463]
[1766889983737,0.02411315,87894.0,87885.0,0.0683463]
[1766889983939,0.02411315,87893.0,87885.0,0.0683463]
[1766889984137,0.02411315,87892.0,87885.0,0.0683463]
[1766889984337,0.02411315,87891.0,87885.0,0.0683463]
[1766889984539,0.02411315,87890.0,87885.0,0.0683463]
[1766889984735,0.00017062,87901.0,87885.0,0.0683463]
[1766889984938,0.02411319,87900.0,87885.0,0.0683463]
[1766889985241,0.02411319,87899.0,87885.0,0.0683463]
[1766889985540,0.02411319,87898.0,87885.0,0.0683463]
[1766889985733,0.02411319,87897.0,87885.0,0.0683463]
[1766889985933,0.02411319,87896.0,87885.0,0.0683463]
[1766889986136,0.02411319,87895.0,87885.0,0.0683463]
[1766889986444,0.02411319,87894.0,87885.0,0.0683463]
[1766889986629,0.02411319,87893.0,87885.0,0.0683463]
[1766889986827,0.02411319,87892.0,87885.0,0.0683463]
[1766889987027,0.02411319,87891.0,87885.0,0.0683463]
[1766889987231,0.02411319,87890.0,87885.0,0.0683463]
[1766889987441,0.01155502,87901.0,87885.0,0.0683463]
[1766889987641,0.02407113,87900.0,87885.0,0.0683463]
[1766889987942,0.02407113,87899.0,87885.0,0.0683463]
[1766889988141,0.02407113,87898.0,87885.0,0.05696]
[1766889988342,0.02407113,87897.0,87885.0,0.05696]
[1766889988542,0.02407113,87896.0,87885.0,0.05696]
[1766889988739,0.02407113,87895.0,87885.0,0.05696]
[1766889988942,0.02407113,87894.0,87885.0,0.05696]
[1766889989142,0.02407113,87893.0,87885.0,0.05696]
[1766889989345,0.02407113,87892.0,87885.0,0.05696]
[1766889989543,0.02407113,87891.0,87885.0,0.05696]
[1766889989841,0.02407113,87890.0,87885.0,0.05696]
[1766889990039,0.0113847,87899.0,87885.0,0.05696]
[1766889990342,0.024071,87898.0,87885.0,0.05696]
[1766889990542,0.0113847,87899.0,87885.0,0.05696]
[1766889990543,0.024071,87897.0,87885.0,0.05696]
[1766889990744,0.024071,87896.0,87885.0,0.05696]
[1766889990938,0.11407184,87900.0,87871.0,0.00011336]
[1766889990939,0.13814284,87895.0,87873.0,0.0113879]
[1766889991146,0.11407184,87890.0,87878.0,0.0968]
[1766889991446,0.024071,87889.0,87878.0,0.0968]
[1766889991742,0.024071,87888.0,87878.0,0.0968]
[1766889991945,0.024071,87887.0,87878.0,0.0968]
[1766889992133,0.0113851,87896.0,87878.0,0.0968]
[1766889992333,0.0243586,87895.0,87878.0,0.0968]
[1766889992534,0.0357439,87894.0,87875.0,0.0113877]
[1766889992743,0.0243586,87893.0,87876.0,0.05696]
[1766889992947,0.0243586,87892.0,87876.0,0.05696]
[1766889993246,0.0243586,87891.0,87876.0,0.05696]
[1766889993546,0.0243586,87890.0,87876.0,0.05696]
[1766889993845,0.0243586,87889.0,87876.0,0.05696]
[1766889994048,0.0243586,87888.0,87876.0,0.05696]
[1766889994242,0.0243586,87887.0,87876.0,0.05696]
[1766889994442,0.0113853,87894.0,87876.0,0.05696]
[1766889994642,0.02435478,87893.0,87876.0,0.05696]
[1766889994844,0.02435478,87892.0,87876.0,0.05696]
[1766889995045,0.02435478,87891.0,87876.0,0.05696]
[1766889995240,0.02435478,87890.0,87876.0,0.05696]
[1766889995442,0.02435478,87889.0,87877.0,0.0113874]
[1766889995642,0.02435478,87888.0,87877.0,0.0113874]
[1766889995852,0.02435478,87887.0,87877.0,0.0113874]
[1766889996045,0.0113853,87894.0,87877.0,0.0113874]
[1766889996350,0.0243524,87893.0,87877.0,0.0113874]
[1766889996552,0.0243524,87892.0,87877.0,0.0113874]
[1766889996749,0.0243524,87891.0,87877.0,0.0113874]
[1766889996950,0.0243524,87890.0,87877.0,0.0113874]
[1766889997251,0.0243524,87889.0,87877.0,0.0113874]
[1766889997460,0.0243524,87888.0,87877.0,0.0113874]
[1766889997655,0.0243524,87887.0,87877.0,0.0113874]
[1766889997841,0.0243524,87886.0,87877.0,0.0113874]
[1766889998150,0.0243524,87885.0,87877.0,0.0113874]
[1766889998340,0.0243524,87884.0,87877.0,0.0113874]
[1766889998537,0.0113853,87894.0,87877.0,0.0113874]
[1766889998741,0.02435079,87893.0,87877.0,0.0113874]
[1766889999040,0.02435079,87892.0,87877.0,0.0113874]
[1766889999241,0.02435079,87891.0,87877.0,0.0113874]
[1766889999453,0.02435079,87890.0,87877.0,0.0113874]
[1766889999752,0.02435079,87889.0,87877.0,0.0113874]
[1766890000053,0.02435079,87888.0,87879.0,0.0113871]
[1766890000242,0.02435079,87887.0,87879.0,0.0113871]
[1766890000444,0.02435079,87886.0,87879.0,0.0113871]
[1766890000754,0.02435079,87885.0,87879.0,0.0113871]
[1766890000957,0.02435079,87884.0,87879.0,0.0113871]
[1766890001154,9e-08,87883.0,87879.0,0.0113871]
[1766890001350,0.07289551,87897.0,87879.0,0.0113871]
[1766890003155,0.15831061,87897.0,87881.0,0.0113869]
[1766890005850,0.05696,87896.0,87881.0,0.0113869]
[1766890008357,0.05696,87896.0,87883.0,0.0113866]
[1766890013053,0.02424536,87895.0,87883.0,0.0113866]
[1766890013257,0.02424536,87894.0,87883.0,0.0113866]
[1766890013457,0.02424536,87893.0,87883.0,0.0113866]
[1766890013659,0.02424536,87892.0,87883.0,0.0113866]
[1766890013856,0.02424536,87891.0,87883.0,0.0113866]
[1766890014057,0.02424624,87890.0,87883.0,0.0113866]
[1766890014260,0.02424624,87889.0,87883.0,0.0113866]
[1766890014462,0.02424624,87888.0,87883.0,0.0113866]
[1766890014766,4e-08,87887.0,87883.0,0.0113866]
[1766890014965,0.05696,87896.0,87883.0,0.0113866]
[1766890019164,0.05696,87896.0,87880.0,0.011387]
[1766890021866,0.05696,87896.0,87882.0,0.0113868]
[1766890026670,0.02423545,87895.0,87882.0,0.0113868]
[1766890026970,0.02423545,87894.0,87882.0,0.0113868]
[1766890027162,0.02423545,87893.0,87882.0,0.0113868]
[1766890027360,0.02423545,87892.0,87882.0,0.0113868]
[1766890027562,0.08119545,87891.0,87882.0,0.0113868]
[1766890027765,0.02423545,87890.0,87882.0,0.0113868]
[1766890027965,0.02423545,87889.0,87882.0,0.0113868]
[1766890028165,0.02423545,87888.0,87882.0,0.0113868]
[1766890028366,0.05696,87891.0,87882.0,0.0113868]
[1766890039977,0.05696,87891.0,87879.0,0.0113871]
[1766890040364,0.02413027,87890.0,87879.0,0.0113871]
[1766890040567,0.02413027,87889.0,87879.0,0.0113871]
[1766890040768,0.02413027,87888.0,87879.0,0.0113871]
[1766890041075,0.02413027,87887.0,87879.0,0.0113871]
[1766890041276,0.02413027,87886.0,87879.0,0.0113871]
[1766890041476,0.02413027,87885.0,87879.0,0.0113871]
[1766890041672,0.02413027,87884.0,87879.0,0.0113871]
[1766890041973,7e-08,87883.0,87879.0,0.0113871]
[1766890042167,0.05696,87891.0,87879.0,0.0113871]
[1766890046879,0.05696,87891.0,87881.0,0.0113869]
[1766890053782,0.02427393,87890.0,87881.0,0.0113869]
[1766890053995,0.02427393,87889.0,87881.0,0.0113869]
[1766890054190,0.02427393,87888.0,87881.0,0.0113869]
[1766890054380,0.02427393,87887.0,87881.0,0.0113869]
[1766890054580,0.02427393,87886.0,87881.0,0.0113869]
[1766890054780,0.05696,87891.0,87881.0,0.0113869]
[1766890054979,0.02427391,87890.0,87881.0,0.0113869]
[1766890055180,0.02427391,87889.0,87881.0,0.0113869]
[1766890055380,0.02427391,87888.0,87881.0,0.0113869]
[1766890055580,0.02427391,87887.0,87881.0,0.0113869]
[1766890055790,0.02427391,87886.0,87881.0,0.0113869]
[1766890055988,0.05696,87891.0,87881.0,0.0113869]
[1766890056291,0.02427388,87890.0,87881.0,0.0113869]
[1766890056587,0.02427388,87889.0,87881.0,0.0113869]
[1766890056788,0.02427388,87888.0,87881.0,0.0113869]
[1766890056987,0.02427388,87887.0,87881.0,0.0113869]
[1766890057192,0.02427388,87886.0,87881.0,0.0113869]
[1766890057488,0.05696,87891.0,87881.0,0.0113869]
[1766890057690,0.02427383,87890.0,87881.0,0.0113869]
[1766890057889,0.02427383,87889.0,87881.0,0.0113869]
[1766890058091,0.02427383,87888.0,87881.0,0.0113869]
[1766890058282,0.02427383,87887.0,87881.0,0.0113869]
[1766890058482,0.02427383,87886.0,87881.0,0.0113869]
[1766890058684,0.05696,87891.0,87881.0,0.0113869]
[1766890058883,0.02427381,87890.0,87881.0,0.0113869]
[1766890059176,0.02427381,87889.0,87881.0,0.0113869]
[1766890059389,0.02427381,87888.0,87881.0,0.0113869]
[1766890059591,0.02427381,87887.0,87881.0,0.0113869]
[1766890059890,0.02427381,87886.0,87881.0,0.0113869]
[1766890060191,0.05696,87891.0,87881.0,0.0113869]
[1766890060490,0.02427377,87890.0,87881.0,0.0113869]
[1766890060690,0.02427377,87889.0,87881.0,0.0113869]
[1766890060991,0.02427377,87888.0,87881.0,0.0113869]
[1766890061185,0.02427377,87887.0,87881.0,0.0113869]
[1766890061384,0.02427377,87886.0,87881.0,0.0113869]
[1766890061581,0.05696,87891.0,87881.0,0.0113869]